[Event "Turkish Cup 2024"]
[Site "Denizli"]
[Date "2024.08.02"]
[Round "6"]
[White "Konusoglu, Kemal Safa"]
[Black "Dokmecioglu, Burak"]
[Result "1-0"]
[ECO "A45"]
[WhiteElo "1904"]
[BlackElo "1800"]
[Annotator "ChessBase"]
[PlyCount "191"]
[EventDate "2024.08.01"]
[EventType "swiss"]
[EventCountry "TUR"]
[SourceTitle "playchess.com"]
[Source "ChessBase"]
[SourceQuality "1"]
[TimeControl "5400+30"]

1. d4 {[%emt 0:01:00]} Nf6 {[%emt 0:02:00]} 2. Bf4 {[%emt 0:00:00]} g6 {[%emt 0:01:30]} 3. Nc3 {[%emt 0:00:00]} d5 {[%emt 0:00:30]} 4. e3 {[%emt 0:00:30]} Bg7 {[%emt 0:00:00]} 5. h4 {[%emt 0:00:00]} h5 {[%emt 0:01:00]} 6. Nf3 {[%emt 0:00:00]} O-O {[%emt 0:01:30]} 7. Be2 {[%emt 0:00:30]} c5 {[%emt 0:02:30]} 8. Nb5 {[%emt 0:00:00]} cxd4 {[%emt 0:03:30]} 9. exd4 {[%emt 0:01:00]} Nc6 {[%emt 0:00:30]} 10. O-O {[%emt 0:06:30]} Bf5 {[%emt 0:02:30]} 11. c3 {[%emt 0:14:30]} Rc8 {[%emt 0:12:30]} 12. Ne5 {[%emt 0:13:30]} a6 {[%emt 0:01:30]} 13. Na3 {[%emt 0:01:30]} Nxe5 {[%emt 0:09:30]} 14. Bxe5 {[%emt 0:02:30]} Ng4 {[%emt 0:08:30]} 15. Bxg7 {[%emt 0:00:30]} Kxg7 {[%emt 0:00:30]} 16. g3 {[%emt 0:11:30]} Qd7 {[%emt 0:02:30]} 17. Nc2 {[%emt 0:05:30]} f6 {[%emt 0:05:30]} 18. Ne1 {[%emt 0:21:14]} e5 {[%emt 0:02:30]} 19. dxe5 {[%emt 0:07:36]} fxe5 {[%emt 0:01:30]} 20. Qd2 {[%emt 0:00:54]} Nf6 {[%emt 0:12:30]} 21. Nf3 {[%emt 0:02:19]} Ne4 {[%emt 0:08:30]} 22. Qe3 {[%emt 0:00:06]} Qe7 {[%emt 0:00:30]} 23. Rad1 {[%emt 0:01:40]} Rcd8 {[%emt 0:00:30]} 24. Ng5 {[%emt 0:06:39]} Nxg5 {[%emt 0:06:57]} 25. hxg5 {[%emt 0:00:14]} Qe6 {[%emt 0:04:48]} 26. Bf3 {[%emt 0:00:51]} Bh3 {[%emt 0:03:35]} 27. Rfe1 {[%emt 0:01:18]} e4 {[%emt 0:01:34]} 28. Bh1 {[%emt 0:01:16]} Qf5 {[%emt 0:00:43]} 29. c4 {[%emt 0:01:16]} Bg4 {[%emt 0:01:30]} 30. Rxd5 {[%emt 0:00:14]} Rxd5 {[%emt 0:01:14]} 31. cxd5 {[%emt 0:00:30]} Bf3 {[%emt 0:00:00]} 32. Qd4+ {[%emt 0:00:49]} Kg8 {[%emt 0:01:31]} 33. d6 {[%emt 0:00:30]} Qh3 {[%emt 0:00:36]} 34. Qc4+ {[%emt 0:00:21]} Kh8 {[%emt 0:00:37]} 35. Bxf3 {[%emt 0:00:52]} exf3 {[%emt 0:00:30]} 36. Qf1 {[%emt 0:00:00]} Qf5 {[%emt 0:01:00]} 37. Rd1 {[%emt 0:00:00]} Rd8 {[%emt 0:00:33]} 38. Qc4 {[%emt 0:00:23]} Kh7 {[%emt 0:01:47]} 39. Qc3 {[%emt 0:01:03]} h4 {[%emt 0:00:25]} 40. Re1 {[%emt 0:00:45]} Rd7 {[%emt 0:00:36]} 41. Re8 {[%emt 0:00:30]} Rg7 {[%emt 0:00:24]} 42. Qd4 {[%emt 0:00:31]} Qxg5 {[%emt 0:00:36]} 43. Qxh4+ {[%emt 0:00:47]} Qxh4 {[%emt 0:00:30]} 44. gxh4 {[%emt 0:00:00]} Kh6 {[%emt 0:00:00]} 45. Re7 {[%emt 0:00:36]} Rg8 {[%emt 0:00:00]} 46. Re4 {[%emt 0:00:00]} g5 {[%emt 0:00:00]} 47. d7 {[%emt 0:00:52]} gxh4+ {[%emt 0:00:01]} 48. Kh2 {[%emt 0:00:53]} Rd8 {[%emt 0:00:07]} 49. Rxh4+ {[%emt 0:00:00]} Kg5 {[%emt 0:00:30]} 50. Rd4 {[%emt 0:00:00]} Kf6 {[%emt 0:00:50]} 51. Kg3 {[%emt 0:00:00]} Ke5 {[%emt 0:00:04]} 52. Rd1 {[%emt 0:00:39]} Ke4 {[%emt 0:00:04]} 53. Re1+ {[%emt 0:00:39]} Kf5 {[%emt 0:00:00]} 54. Rd1 {[%emt 0:00:20]} Ke4 {[%emt 0:00:01]} 55. Rd2 {[%emt 0:00:17]} b5 {[%emt 0:00:48]} 56. b4 {[%emt 0:00:10]} Rg8+ {[%emt 0:00:00]} 57. Kh4 {[%emt 0:00:20]} Rd8 {[%emt 0:00:02]} 58. Kg5 {[%emt 0:00:09]} Ke5 {[%emt 0:00:13]} 59. a3 {[%emt 0:00:54]} Rg8+ {[%emt 0:00:30]} 60. Kh6 {[%emt 0:00:30]} Rd8 {[%emt 0:00:00]} 61. Rd3 {[%emt 0:02:20]} Ke4 {[%emt 0:00:00]} 62. Rd6 {[%emt 0:00:37]} Ke5 {[%emt 0:00:31]} 63. Rd1 {[%emt 0:00:04]} Kf6 {[%emt 0:00:00]} 64. Rd6+ {[%emt 0:00:35]} Ke5 {[%emt 0:00:00]} 65. Rd2 {[%emt 0:00:47]} Kf6 {[%emt 0:00:00]} 66. Kh5 {[%emt 0:00:21]} Kf5 {[%emt 0:00:02]} 67. Rd5+ {[%emt 0:00:19]} Ke4 {[%emt 0:00:07]} 68. Rd1 {[%emt 0:00:58]} Kf5 {[%emt 0:00:01]} 69. Kh4 {[%emt 0:00:07]} Kf4 {[%emt 0:00:07]} 70. Rd4+ {[%emt 0:00:50]} Ke5 {[%emt 0:00:30]} 71. Rd3 {[%emt 0:00:00]} Ke4 {[%emt 0:00:09]} 72. Rd2 {[%emt 0:00:12]} Kf4 {[%emt 0:00:30]} 73. Kh5 {[%emt 0:00:30]} Kf5 {[%emt 0:00:30]} 74. Kh6 {[%emt 0:00:30]} Kf6 {[%emt 0:00:00]} 75. Kh7 {[%emt 0:01:22]} Kf7 {[%emt 0:00:00]} 76. Rd3 {[%emt 0:00:00]} Ke6 {[%emt 0:01:16]} 77. Kg7 {[%emt 0:00:18]} Rxd7+ {[%emt 0:00:53]} 78. Rxd7 {[%emt 0:00:06]} Kxd7 {[%emt 0:00:15]} 79. Kf6 {[%emt 0:00:30]} Kd6 {[%emt 0:00:30]} 80. Kf5 {[%emt 0:00:30]} Kd5 {[%emt 0:00:00]} 81. Kf4 {[%emt 0:00:00]} Kc4 {[%emt 0:00:00]} 82. Kxf3 {[%emt 0:00:05]} Kb3 {[%emt 0:00:00]} 83. Ke3 {[%emt 0:00:00]} Kxa3 {[%emt 0:00:00]} 84. f4 {[%emt 0:00:09]} Kxb4 {[%emt 0:00:00]} 85. Kd4 {[%emt 0:00:30]} a5 {[%emt 0:00:00]} 86. f5 {[%emt 0:00:00]} a4 {[%emt 0:00:09]} 87. f6 {[%emt 0:00:04]} a3 {[%emt 0:00:00]} 88. f7 {[%emt 0:00:00]} a2 {[%emt 0:00:12]} 89. f8=Q+ {[%emt 0:00:11]} Kb3 {[%emt 0:00:00]} 90. Qf1 {[%emt 0:00:38]} Kb2 {[%emt 0:03:09]} 91. Qe2+ {[%emt 0:00:05]} Ka3 {[%emt 0:04:25]} 92. Qd3+ {[%emt 0:02:12]} Kb2 {[%emt 0:00:20]} 93. Qd2+ {[%emt 0:00:49]} Kb1 {[%emt 0:00:14]} 94. Kd3 {[%emt 0:01:35]} a1=N {[%emt 0:01:14]} 95. Qb4+ {[%emt 0:00:55]} Ka2 {[%emt 0:00:09]} 96. Ke4 {[%emt 0:00:12]} 1-0

[Event "Turkish Cup 2024"]
[Site "Denizli"]
[Date "2024.08.02"]
[Round "6"]
[White "Akyuz, Murat"]
[Black "Uysal, Ugur"]
[Result "0-1"]
[ECO "A70"]
[WhiteElo "1890"]
[BlackElo "2114"]
[Annotator "ChessBase"]
[PlyCount "64"]
[EventDate "2024.08.01"]
[EventType "swiss"]
[EventCountry "TUR"]
[SourceTitle "playchess.com"]
[Source "ChessBase"]
[SourceQuality "1"]
[TimeControl "5400+30"]

1. Nf3 {[%emt 0:01:00]} Nf6 {[%emt 0:01:00]} 2. d4 {[%emt 0:00:00]} g6 {[%emt 0:00:00]} 3. c4 {[%emt 0:00:00]} Bg7 {[%emt 0:00:00]} 4. Nc3 {[%emt 0:00:30]} O-O {[%emt 0:00:00]} 5. e4 {[%emt 0:00:30]} d6 {[%emt 0:00:00]} 6. h3 {[%emt 0:00:30]} c5 {[%emt 0:00:30]} 7. d5 {[%emt 0:00:30]} e6 {[%emt 0:00:00]} 8. Bd3 {[%emt 0:00:30]} exd5 {[%emt 0:00:00]} 9. cxd5 {[%emt 0:00:30]} a6 {[%emt 0:00:30]} 10. a4 {[%emt 0:00:00]} Re8 {[%emt 0:01:30]} 11. O-O {[%emt 0:00:00]} Nbd7 {[%emt 0:02:30]} 12. Bf4 {[%emt 0:00:30]} c4 {[%emt 0:04:30]} 13. Bc2 {[%emt 0:03:30]} Nc5 {[%emt 0:01:30]} 14. e5 {[%emt 0:04:30]} Nh5 {[%emt 0:05:30]} 15. Bg5 {[%emt 0:03:30]} f6 {[%emt 0:00:30]} 16. exf6 {[%emt 0:06:30]} Bxf6 {[%emt 0:00:30]} 17. Qd2 {[%emt 0:03:30]} Bd7 {[%emt 0:15:30]} 18. a5 {[%emt 0:14:30]} Rf8 {[%emt 0:02:30]} 19. Bh6 {[%emt 0:03:30]} Bg7 {[%emt 0:03:30]} 20. Bxg7 {[%emt 0:05:30]} Kxg7 {[%emt 0:02:30]} 21. Ng5 {[%emt 0:05:30]} Nf4 {[%emt 0:07:30]} 22. Qd4+ {[%emt 0:17:30]} Kg8 {[%emt 0:03:30]} 23. h4 {[%emt 0:01:30]} h6 {[%emt 0:03:30]} 24. Ne6 {[%emt 0:04:30]} Ncxe6 {[%emt 0:04:30]} 25. dxe6 {[%emt 0:00:30]} Qxh4 {[%emt 0:00:00]} 26. Qe4 {[%emt 0:05:51]} Bc6 {[%emt 0:01:00]} 27. e7 {[%emt 0:05:49]} Rf7 {[%emt 0:06:30]} 28. Nd5 {[%emt 0:01:35]} Bxd5 {[%emt 0:00:30]} 29. e8=Q+ {[%emt 0:01:02]} Rxe8 {[%emt 0:00:30]} 30. Qxe8+ {[%emt 0:00:30]} Rf8 {[%emt 0:00:00]} 31. Qe3 {[%emt 0:02:17]} Bxg2 {[%emt 0:00:00]} 32. f3 {[%emt 0:00:41]} Qg3 {[%emt 0:00:30]} 0-1

[Event "Turkish Cup 2024"]
[Site "Denizli"]
[Date "2024.08.02"]
[Round "6"]
[White "Cakir, Ege"]
[Black "Maruflu, Enes Yusuf"]
[Result "1/2-1/2"]
[ECO "D02"]
[WhiteElo "1889"]
[BlackElo "2228"]
[Annotator "ChessBase"]
[PlyCount "69"]
[EventDate "2024.08.01"]
[EventType "swiss"]
[EventCountry "TUR"]
[SourceTitle "playchess.com"]
[Source "ChessBase"]
[SourceQuality "1"]
[TimeControl "5400+30"]

1. d4 {[%emt 0:01:00]} d5 {[%emt 0:06:00]} 2. Nf3 {[%emt 0:00:00]} Nf6 {[%emt 0:01:30]} 3. g3 {[%emt 0:00:00]} c5 {[%emt 0:01:30]} 4. Bg2 {[%emt 0:00:30]} cxd4 {[%emt 0:00:30]} 5. O-O {[%emt 0:00:00]} h6 {[%emt 0:00:00]} 6. a3 {[%emt 0:06:00]} a6 {[%emt 0:09:00]} 7. b4 {[%emt 0:06:30]} Qc7 {[%emt 0:01:30]} 8. Bf4 {[%emt 0:01:30]} Qb6 {[%emt 0:00:30]} 9. Qxd4 {[%emt 0:10:30]} Qxd4 {[%emt 0:01:30]} 10. Nxd4 {[%emt 0:00:00]} Nbd7 {[%emt 0:00:30]} 11. Nb3 {[%emt 0:01:00]} e5 {[%emt 0:01:30]} 12. Bd2 {[%emt 0:00:30]} Nb6 {[%emt 0:01:30]} 13. Na5 {[%emt 0:01:30]} Be7 {[%emt 0:06:30]} 14. c4 {[%emt 0:04:30]} Nxc4 {[%emt 0:03:30]} 15. Nxc4 {[%emt 0:00:30]} dxc4 {[%emt 0:00:30]} 16. Rc1 {[%emt 0:00:00]} Bd6 {[%emt 0:01:30]} 17. Rxc4 {[%emt 0:01:00]} Ke7 {[%emt 0:00:30]} 18. Rc1 {[%emt 0:02:30]} Rb8 {[%emt 0:00:30]} 19. Nc3 {[%emt 0:00:30]} Bd7 {[%emt 0:02:30]} 20. Nd5+ {[%emt 0:04:30]} Nxd5 {[%emt 0:00:30]} 21. Bxd5 {[%emt 0:00:00]} Be6 {[%emt 0:02:30]} 22. Bxe6 {[%emt 0:02:00]} Kxe6 {[%emt 0:00:30]} 23. e4 {[%emt 0:00:30]} Rbc8 {[%emt 0:00:30]} 24. Kf1 {[%emt 0:02:30]} h5 {[%emt 0:00:30]} 25. Rxc8 {[%emt 0:02:30]} Rxc8 {[%emt 0:00:30]} 26. Rc1 {[%emt 0:00:00]} Rxc1+ {[%emt 0:08:30]} 27. Bxc1 {[%emt 0:00:00]} Kd7 {[%emt 0:00:30]} 28. Ke2 {[%emt 0:01:30]} Kc6 {[%emt 0:00:00]} 29. Kd3 {[%emt 0:04:30]} Bc7 {[%emt 0:01:00]} 30. a4 {[%emt 0:03:30]} Bb6 {[%emt 0:01:30]} 31. f3 {[%emt 0:00:30]} Bd4 {[%emt 0:02:30]} 32. Kc4 {[%emt 0:01:30]} b5+ {[%emt 0:00:30]} 33. axb5+ {[%emt 0:00:30]} axb5+ {[%emt 0:00:30]} 34. Kd3 {[%emt 0:00:00]} Kd6 {[%emt 0:00:30]} 35. h3 {[%emt 0:01:00]} 1/2-1/2

[Event "Turkish Cup 2024"]
[Site "Denizli"]
[Date "2024.08.02"]
[Round "6"]
[White "Demirci, Fatih"]
[Black "Binboga, Yaman"]
[Result "1-0"]
[ECO "A11"]
[WhiteElo "1885"]
[BlackElo "1770"]
[Annotator "NA"]
[PlyCount "119"]
[EventDate "2024.08.01"]
[EventType "swiss"]
[EventCountry "TUR"]
[SourceTitle "playchess.com"]
[Source "ChessBase"]
[SourceQuality "1"]
[TimeControl "5400+30"]

1. Nf3 {[%emt 0:05:00]} d5 {[%emt 0:01:00]} 2. g3 {[%emt 0:00:00]} c6 {[%emt 0:00:30]} 3. Bg2 {[%emt 0:00:00]} Nf6 {[%emt 0:00:00]} 4. d3 {[%emt 0:00:30]} h6 {[%emt 0:00:00]} 5. O-O {[%emt 0:00:30]} Bf5 {[%emt 0:00:30]} 6. c4 {[%emt 0:00:30]} e6 {[%emt 0:00:30]} 7. Qb3 {[%emt 0:00:30]} Qb6 {[%emt 0:07:30]} 8. Be3 {[%emt 0:00:30]} Qxb3 {[%emt 0:00:30]} 9. axb3 {[%emt 0:00:30]} a6 {[%emt 0:04:30]} 10. Bd4 {[%emt 0:04:30]} Nbd7 {[%emt 0:00:30]} 11. Bc3 {[%emt 0:00:30]} Be7 {[%emt 0:05:30]} 12. b4 {[%emt 0:05:30]} O-O {[%emt 0:02:30]} 13. Nbd2 {[%emt 0:02:30]} Rfd8 {[%emt 0:10:30]} 14. Nb3 {[%emt 0:02:30]} Rac8 {[%emt 0:14:30]} 15. c5 {[%emt 0:09:30]} Bh7 {[%emt 0:05:30]} 16. h4 {[%emt 0:06:30]} Ng4 {[%emt 0:03:30]} 17. Bh3 {[%emt 0:00:30]} h5 {[%emt 0:01:30]} 18. Nh2 {[%emt 0:10:30]} Nxh2 {[%emt 0:02:30]} 19. Kxh2 {[%emt 0:00:30]} Bf6 {[%emt 0:00:30]} 20. f3 {[%emt 0:07:30]} Rc7 {[%emt 0:09:30]} 21. Kg2 {[%emt 0:07:30]} Re8 {[%emt 0:02:30]} 22. Ra3 {[%emt 0:09:30]} Bxc3 {[%emt 0:07:58]} 23. bxc3 {[%emt 0:00:30]} e5 {[%emt 0:00:28]} 24. e4 {[%emt 0:02:30]} Nf6 {[%emt 0:00:58]} 25. Na5 {[%emt 0:02:30]} Rd8 {[%emt 0:01:23]} 26. Rf2 {[%emt 0:02:30]} Re7 {[%emt 0:04:22]} 27. Re2 {[%emt 0:00:30]} Ne8 {[%emt 0:04:00]} 28. Kf2 {[%emt 0:00:30]} Bg6 {[%emt 0:05:30]} 29. Ra1 {[%emt 0:02:11]} f6 {[%emt 0:00:57]} 30. Rc1 {[%emt 0:01:34]} Bf7 {[%emt 0:01:10]} 31. Rcc2 {[%emt 0:00:54]} g6 {[%emt 0:02:54]} 32. Rc1 {[%emt 0:02:58]} Ng7 {[%emt 0:01:12]} 33. Rce1 {[%emt 0:01:35]} dxe4 {[%emt 0:01:33]} 34. dxe4 {[%emt 0:00:10]} Be6 {[%emt 0:01:03]} 35. Bf1 {[%emt 0:01:04]} g5 {[%emt 0:00:00]} 36. Rc1 {[%emt 0:02:17]} gxh4 {[%emt 0:00:47]} 37. gxh4 {[%emt 0:00:02]} f5 {[%emt 0:00:12]} 38. exf5 {[%emt 0:02:41]} Bxf5 {[%emt 0:00:19]} 39. Rce1 {[%emt 0:00:23]} e4 {[%emt 0:00:38]} 40. Kg1 {[%emt 0:02:13]} Ne6 {[%emt 0:00:30]} 41. fxe4 {[%emt 0:01:41]} Bg4 {[%emt 0:00:08]} 42. Rf2 {[%emt 0:00:00]} Kg7 {[%emt 0:00:54]} 43. Nc4 {[%emt 0:00:29]} Nf8 {[%emt 0:00:30]} 44. Kh2 {[%emt 0:02:08]} Ng6 {[%emt 0:00:30]} 45. Kg3 {[%emt 0:00:00]} Ne5 {[%emt 0:00:30]} 46. Nd6 {[%emt 0:00:31]} Nf7 {[%emt 0:00:23]} 47. Nf5+ {[%emt 0:03:14]} Bxf5 {[%emt 0:00:32]} 48. Rxf5 {[%emt 0:00:04]} Re5 {[%emt 0:00:14]} 49. Kf4 {[%emt 0:00:53]} Rde8 {[%emt 0:00:38]} 50. Bc4 {[%emt 0:01:04]} Rxf5+ {[%emt 0:00:17]} 51. Kxf5 {[%emt 0:00:00]} Ne5 {[%emt 0:00:23]} 52. Rg1+ {[%emt 0:00:11]} Kh6 {[%emt 0:00:26]} 53. Be2 {[%emt 0:00:28]} Nd7 {[%emt 0:01:04]} 54. Rg6+ {[%emt 0:00:45]} Kh7 {[%emt 0:00:04]} 55. Rd6 {[%emt 0:00:26]} Rf8+ {[%emt 0:00:35]} 56. Ke6 {[%emt 0:00:30]} Nf6 {[%emt 0:00:21]} 57. e5 {[%emt 0:02:33]} Ng4 {[%emt 0:00:08]} 58. Rd7+ {[%emt 0:00:00]} Kh6 {[%emt 0:00:10]} 59. Rxb7 {[%emt 0:00:46]} Re8+ {[%emt 0:00:19]} 60. Re7 {[%emt 0:00:00]} 1-0

[Event "Turkish Cup 2024"]
[Site "Denizli"]
[Date "2024.08.02"]
[Round "6"]
[White "Kayan, Veli"]
[Black "Seker, Cinar"]
[Result "0-1"]
[ECO "C56"]
[WhiteElo "1881"]
[BlackElo "1815"]
[Annotator "NA"]
[PlyCount "138"]
[EventDate "2024.08.01"]
[EventType "swiss"]
[EventCountry "TUR"]
[SourceTitle "playchess.com"]
[Source "ChessBase"]
[SourceQuality "1"]
[TimeControl "5400+30"]

1. e4 {[%emt 0:04:00]} e5 {[%emt 0:01:00]} 2. Nf3 {[%emt 0:00:30]} Nc6 {[%emt 0:00:00]} 3. d4 {[%emt 0:00:00]} exd4 {[%emt 0:00:00]} 4. Bc4 {[%emt 0:00:00]} Nf6 {[%emt 0:00:30]} 5. e5 {[%emt 0:00:00]} d5 {[%emt 0:00:00]} 6. Bb5 {[%emt 0:00:00]} Ne4 {[%emt 0:00:00]} 7. Nxd4 {[%emt 0:00:30]} Bd7 {[%emt 0:00:00]} 8. Bxc6 {[%emt 0:00:30]} bxc6 {[%emt 0:00:00]} 9. O-O {[%emt 0:00:30]} Bc5 {[%emt 0:00:30]} 10. Be3 {[%emt 0:00:00]} Bb6 {[%emt 0:00:30]} 11. f3 {[%emt 0:00:00]} Ng5 {[%emt 0:02:30]} 12. f4 {[%emt 0:00:30]} Ne4 {[%emt 0:00:30]} 13. Nd2 {[%emt 0:00:30]} c5 {[%emt 0:08:30]} 14. N4f3 {[%emt 0:03:30]} Nxd2 {[%emt 0:01:30]} 15. Qxd2 {[%emt 0:00:00]} d4 {[%emt 0:00:30]} 16. Bf2 {[%emt 0:00:00]} Bc6 {[%emt 0:00:00]} 17. f5 {[%emt 0:00:30]} Qd5 {[%emt 0:04:00]} 18. Bh4 {[%emt 0:00:30]} h6 {[%emt 0:02:30]} 19. Kh1 {[%emt 0:04:30]} Qe4 {[%emt 0:02:30]} 20. e6 {[%emt 0:06:30]} f6 {[%emt 0:02:30]} 21. Rae1 {[%emt 0:03:30]} Qg4 {[%emt 0:00:30]} 22. Bg3 {[%emt 0:03:30]} O-O-O {[%emt 0:03:30]} 23. Nh4 {[%emt 0:01:30]} h5 {[%emt 0:03:30]} 24. Rf4 {[%emt 0:08:30]} Qg5 {[%emt 0:00:30]} 25. c4 {[%emt 0:08:30]} dxc3 {[%emt 0:02:30]} 26. Qxc3 {[%emt 0:00:30]} Kb7 {[%emt 0:00:30]} 27. Rc1 {[%emt 0:05:30]} Rd5 {[%emt 0:00:30]} 28. Nf3 {[%emt 0:10:30]} Qh6 {[%emt 0:00:30]} 29. Nd4 {[%emt 0:06:30]} Qxf4 {[%emt 0:12:30]} 30. Bxf4 {[%emt 0:02:30]} Rxd4 {[%emt 0:00:30]} 31. Be3 {[%emt 0:03:30]} Rg4 {[%emt 0:00:00]} 32. Rc2 {[%emt 0:04:30]} Rd8 {[%emt 0:02:00]} 33. h3 {[%emt 0:04:30]} Rg3 {[%emt 0:01:30]} 34. Kh2 {[%emt 0:00:00]} h4 {[%emt 0:00:30]} 35. Qe1 {[%emt 0:01:00]} g5 {[%emt 0:09:30]} 36. fxg6 {[%emt 0:01:30]} Rg8 {[%emt 0:00:30]} 37. Bf4 {[%emt 0:00:47]} R3xg6 {[%emt 0:02:30]} 38. g3 {[%emt 0:06:13]} hxg3+ {[%emt 0:01:30]} 39. Bxg3 {[%emt 0:00:11]} f5 {[%emt 0:00:30]} 40. Qe5 {[%emt 0:02:46]} Be4 {[%emt 0:06:30]} 41. Rd2 {[%emt 0:02:17]} c4 {[%emt 0:04:30]} 42. e7 {[%emt 0:01:51]} Bg1+ {[%emt 0:01:30]} 43. Kxg1 {[%emt 0:00:32]} Rxg3+ {[%emt 0:00:30]} 44. Kf1 {[%emt 0:06:19]} Rg1+ {[%emt 0:04:30]} 45. Kf2 {[%emt 0:00:47]} R8g2+ {[%emt 0:00:00]} 46. Ke3 {[%emt 0:00:51]} Re1+ {[%emt 0:00:00]} 47. Kd4 {[%emt 0:02:21]} Rxd2+ {[%emt 0:00:30]} 48. Kc3 {[%emt 0:00:26]} Rd3+ {[%emt 0:00:30]} 49. Kb4 {[%emt 0:00:51]} a5+ {[%emt 0:00:00]} 50. Qxa5 {[%emt 0:00:15]} Bc6 {[%emt 0:01:00]} 51. Kxc4 {[%emt 0:00:05]} Rde3 {[%emt 0:00:00]} 52. Qxf5 {[%emt 0:01:19]} Rxe7 {[%emt 0:00:00]} 53. b3 {[%emt 0:00:04]} R7e5 {[%emt 0:00:30]} 54. Qf8 {[%emt 0:00:21]} R1e4+ {[%emt 0:01:30]} 55. Kc3 {[%emt 0:00:02]} Re3+ {[%emt 0:00:00]} 56. Kb2 {[%emt 0:00:20]} Re2+ {[%emt 0:01:00]} 57. Ka3 {[%emt 0:00:36]} Ra5+ {[%emt 0:00:30]} 58. Kb4 {[%emt 0:00:02]} Raxa2 {[%emt 0:00:30]} 59. h4 {[%emt 0:00:11]} Re4+ {[%emt 0:00:00]} 60. Kc3 {[%emt 0:00:08]} Rxh4 {[%emt 0:00:00]} 61. Qd8 {[%emt 0:00:02]} Rh3+ {[%emt 0:00:30]} 62. Kc4 {[%emt 0:00:32]} Re2 {[%emt 0:00:30]} 63. Kb4 {[%emt 0:01:18]} Ree3 {[%emt 0:00:30]} 64. Qg8 {[%emt 0:00:37]} Rxb3+ {[%emt 0:00:30]} 65. Kc5 {[%emt 0:00:19]} Rb5+ {[%emt 0:01:30]} 66. Kd4 {[%emt 0:00:09]} Rd5+ {[%emt 0:00:30]} 67. Kc4 {[%emt 0:00:05]} Re5 {[%emt 0:00:30]} 68. Kd4 {[%emt 0:00:35]} Re4+ {[%emt 0:00:30]} 69. Kc5 {[%emt 0:00:24]} Rh5+ {[%emt 0:00:00]} 0-1

[Event "Turkish Cup 2024"]
[Site "Denizli"]
[Date "2024.08.02"]
[Round "6"]
[White "Ozcan, Kadir Kutay"]
[Black "Torun, Selin"]
[Result "1-0"]
[ECO "C00"]
[WhiteElo "1876"]
[BlackElo "1843"]
[Annotator "NA"]
[PlyCount "67"]
[EventDate "2024.08.01"]
[EventType "swiss"]
[EventCountry "TUR"]
[SourceTitle "playchess.com"]
[Source "ChessBase"]
[SourceQuality "1"]
[TimeControl "5400+30"]

1. e4 {[%emt 0:08:00]} e6 {[%emt 0:01:00]} 2. b3 {[%emt 0:00:30]} d5 {[%emt 0:00:30]} 3. Bb2 {[%emt 0:00:30]} dxe4 {[%emt 0:01:30]} 4. Nc3 {[%emt 0:00:00]} Nf6 {[%emt 0:00:30]} 5. Qe2 {[%emt 0:00:00]} Bb4 {[%emt 0:03:30]} 6. O-O-O {[%emt 0:01:30]} Qe7 {[%emt 0:02:30]} 7. Nxe4 {[%emt 0:04:30]} Ba3 {[%emt 0:01:30]} 8. Nxf6+ {[%emt 0:02:30]} Qxf6 {[%emt 0:01:30]} 9. d4 {[%emt 0:00:30]} Bxb2+ {[%emt 0:00:30]} 10. Kxb2 {[%emt 0:00:00]} Nc6 {[%emt 0:00:30]} 11. Nf3 {[%emt 0:00:00]} a5 {[%emt 0:00:30]} 12. a4 {[%emt 0:05:30]} Bd7 {[%emt 0:03:30]} 13. Qe4 {[%emt 0:04:30]} O-O-O {[%emt 0:03:30]} 14. Bb5 {[%emt 0:02:30]} Rhe8 {[%emt 0:02:30]} 15. Ne5 {[%emt 0:06:30]} Nxe5 {[%emt 0:01:30]} 16. dxe5 {[%emt 0:01:30]} Qg6 {[%emt 0:06:30]} 17. Qd4 {[%emt 0:13:30]} Bxb5 {[%emt 0:08:30]} 18. Qa7 {[%emt 0:00:30]} Rd5 {[%emt 0:00:30]} 19. axb5 {[%emt 0:02:30]} Qh5 {[%emt 0:09:30]} 20. Rxd5 {[%emt 0:04:30]} exd5 {[%emt 0:00:30]} 21. f4 {[%emt 0:01:30]} Qe2 {[%emt 0:05:30]} 22. Qa8+ {[%emt 0:01:30]} Kd7 {[%emt 0:00:30]} 23. Qxb7 {[%emt 0:00:30]} Qd2 {[%emt 0:00:30]} 24. Qc6+ {[%emt 0:00:30]} Kd8 {[%emt 0:00:30]} 25. Qc5 {[%emt 0:07:30]} Qxf4 {[%emt 0:02:30]} 26. Qxd5+ {[%emt 0:01:30]} Ke7 {[%emt 0:01:30]} 27. Qc5+ {[%emt 0:01:30]} Kd8 {[%emt 0:00:30]} 28. Re1 {[%emt 0:02:30]} Qb4 {[%emt 0:01:30]} 29. Rd1+ {[%emt 0:01:30]} Kc8 {[%emt 0:07:30]} 30. Qc6 {[%emt 0:00:30]} Kb8 {[%emt 0:02:30]} 31. Qxe8+ {[%emt 0:00:30]} Ka7 {[%emt 0:00:30]} 32. Qc6 {[%emt 0:00:00]} Qe7 {[%emt 0:00:30]} 33. b6+ {[%emt 0:00:00]} cxb6 {[%emt 0:02:30]} 34. Rd7+ {[%emt 0:02:30]} 1-0